Cogmind - Beta 15 @@@ ROGUE MODE // 2025.06.09 @ 19:17:59 Player: Demo Result: Destroyed by PM-VJ8(R) with Subdweller Machine Gun Performance ------------- Evolutions (0) 0 Regions Visited (2) 400 Robots Destroyed (34) 170 Value Destroyed (646) 646 Prototype IDs (3) 60 Alien Tech Used (0) 0 Bonus (0) 0 TOTAL SCORE: 1276 Bonus ------- None Cogmind --------- Core Integrity 0/250 Matter 128/300 Energy 200/200 System Corruption 3% Temperature Cool (0) Movement Rolling (179) Ox7 Location -10/Subcaves Parts ------- > --- POWER (1) -------- Subdweller Power Source > --- PROPULSION (2) --- Wheel Subdweller Monowheel > --- UTILITY (2) ------ Humpback > --- WEAPON (2) ------- Subdweller Machine Gun Makeshift Shrapnel Gun > --- INVENTORY (35) --- Subdweller Power Source Subdweller Power Source Wheel Wheel Wheel Compact Wheel Subdweller Monowheel Subdweller Monowheel Disposable Heat Sink High-capacity Storage Unit Large Matter Pod (150) Large Matter Pod (150) Large Matter Pod (70) Structural Scanner Subdweller Optics Sensor Array Signal Interpreter Terrain Scanner Improved Terrain Scanner Seismic Detector Seismic Detector Seismic Detector Targeting Computer Assault Rifle Light Assault Rifle Battle Rifle Light Cannon Light Cannon Light Cannon Peak State ------------ > --- POWER ------------ Subdweller Power Source > --- PROPULSION ------- Wheel Subdweller Monowheel > --- UTILITY ---------- Humpback > --- WEAPON ----------- Battle Rifle Makeshift Shrapnel Gun > --- INVENTORY -------- Subdweller Power Source Wheel Wheel Wheel Compact Wheel High-capacity Storage Unit Large Matter Pod Large Matter Pod Large Matter Pod Structural Scanner Subdweller Optics Sensor Array Signal Interpreter Terrain Scanner Improved Terrain Scanner Seismic Detector Seismic Detector Seismic Detector Targeting Computer Assault Rifle Light Assault Rifle Light Cannon Light Cannon Light Cannon Flamer [Rating: 16] Favorites ----------- Power Ion Engine Engine Ion Engine Propulsion Wheel Treads Light Treads Wheel Wheel Utility Humpback Device Seismic Detector Storage Humpback Weapon Makeshift Shrapnel Gun Energy Gun EM Pulse Gun Ballistic Gun Makeshift Shrapnel Gun Ballistic Cannon Light Cannon Launcher Grenade Launcher Build | -11 -10 -10 ------- Run | Yrd Mat Sub Slots Evolved . | . . . Power . | . . . Propulsion . | . . . Utility . | . . . Weapon . | . . . Parts Attached 29 | 7 8 14 Power 3 | 1 . 2 Engine 3 | 1 . 2 Core . | . . . Reactor . | . . . Propulsion 6 | 2 1 3 Treads 1 | 1 . . Leg . | . . . Wheel 5 | 1 1 3 Hover . | . . . Flight . | . . . Utility 10 | 2 5 3 Device 6 | 1 3 2 Storage 4 | 1 2 1 Processor . | . . . Hackware . | . . . Protection . | . . . Artifact . | . . . Weapon 10 | 2 2 6 Energy Gun 1 | . 1 . Energy Cannon . | . . . Ballistic Gun 6 | 2 . 4 Ballistic Cannon 2 | . . 2 Launcher 1 | . 1 . Special Weapon . | . . . Impact Weapon . | . . . Slashing Weapon . | . . . Piercing Weapon . | . . . Special Melee Weapon . | . . . Unidentified Prototypes . | . . . Parts Lost 8 | . 1 7 Power 2 | . . 2 Propulsion 3 | . . 3 Utility 1 | . 1 . Weapon 2 | . . 2 Highest Loss Streak 4 | . 1 4 To Critical Strikes . | . . . Average Backups 18 | 3 13 24 Power . | . . 1 Propulsion 4 | 1 4 5 Utility 9 | . 6 12 Weapon 4 | . 3 5 Tool/Special . | . . . Unused Backups 19 | . 1 18 Power 1 | . . 1 Propulsion 5 | . . 5 Utility 10 | . 1 9 Weapon 3 | . . 3 Tool/Special . | . . . Average Slot Usage (%) 91 | . 99 85 Engine 13 | . 14 13 Treads 8 | . 9 7 Wheel 19 | . 18 19 Device 7 | . 13 2 Storage 13 | . 14 13 Energy Gun 3 | . 8 . Ballistic Gun 17 | . 18 16 Ballistic Cannon 5 | . . 9 Launcher 1 | . 1 1 Peak Build Rating 16 | 7 10 16 Average Rating 10 | 6 8 13 On Entrance 5 | . 7 9 Naked Turns . | . . . Heaviest Build 211 | 14 51 211 Greatest Support 40 | 10 20 40 Greatest Overweight (x) 10 | 1 5 10 Average Overweight (x) 4 | . 2 7 Largest Inventory Capacity 35 | 8 20 35 Average Capacity 24 | 7 16 32 Most Carried 31 | 7 20 31 Average Carried 18 | 3 13 24 Final Capacity 35 | 8 20 35 Final Carried 29 | 7 20 29 Class Distribution -------------------- 54% | Mutant 45% | Hauler-Mutant Dominant Class ---------------- Mutant | -10/Materials Hauler-Mutant | -10/Subcaves Resources | -11 -10 -10 ----------- Run | Yrd Mat Sub Matter Collected 1554 | 373 584 597 Remotely . | . . . Salvage Created 825 | 230 465 130 Parts 65 | 13 43 9 Haulers Intercepted 2 | . 2 . Recyclers Shooed 1 | 1 . . Parts Field Recycled . | . . . Retrieved Matter . | . . . Parts Self-Destructed 11 | . . 11 Prevented . | . . . Kills | -11 -10 -10 ------- Run | Yrd Mat Sub Combat Hostiles Destroyed 18 | . 12 6 Guns 7 | . 3 4 Cannons 2 | . . 2 AOE 9 | . 9 . Classes Destroyed 9 | 3 5 1 Worker 3 | 2 1 . Builder 3 | . 3 . Tunneler 5 | 4 1 . Hauler 2 | . 2 . Recycler 1 | 1 . . Watcher 2 | . 2 . Swarmer 5 | . 5 . Grunt 7 | . 7 . Subdweller 6 | . . 6 Best Kill Streak 5 | 5 4 2 Combat Bots Only 3 | . 3 2 Max Kills in Single Turn 3 | 1 3 1 Gunslinging . | . . . Exploded 3 | . 3 . Melee . | . . . Uniques/NPCs Destroyed . | . . . Combat | -11 -10 -10 -------- Run | Yrd Mat Sub Hostile Shots Fired 79 | . 24 55 Missed 16 | . 4 12 Hits 63 | . 20 43 Projectile 63 | . 20 43 Critical Strikes 1 | . . 1 Damage Taken 1286 | . 272 1014 Core 255 | . 49 206 Absorbed by Shields . | . . . Core Remaining (%) 100 | 100 . . Volleys Fired 98 | 16 42 40 Largest 2 | 2 2 2 Hottest 63 | 40 60 63 Shots Fired 175 | 32 73 70 Gun 140 | 32 61 47 Cannon 21 | . . 21 Launcher 14 | . 12 2 Special . | . . . Kinetic 135 | 32 35 68 Thermal . | . . . Explosive 14 | . 12 2 Electromagnetic 26 | . 26 . Robot Hit Streak 12 | 9 7 12 Robot Miss Streak 5 | 1 2 5 Penetration Max . | . . . Secondary Targets . | . . . Shots Hit Robots 104 | 22 39 43 Core Hits 54 | 9 32 13 Critical Kills . | . . . Critical Parts Destroyed . | . . . Critical Strikes . | . . . Melee Attacks . | . . . Impact . | . . . Slashing . | . . . Piercing . | . . . Sneak Attacks . | . . . Combat Hostiles . | . . . Follow-up Attacks . | . . . Damage Inflicted 2086 | 271 1040 775 Guns 1234 | 271 435 528 Cannons 247 | . . 247 Explosions 605 | . 605 . Melee . | . . . Ramming . | . . . Kinetic 1257 | 271 211 775 Thermal 74 | . 74 . Explosive 531 | . 531 . Electromagnetic 224 | . 224 . Impact . | . . . Slashing . | . . . Piercing . | . . . Highest Corruption 3 | . 3 3 Average Corruption 2 | . 2 3 Corruption Purged . | . . . Corruption Blocked . | . . . Effects 26 | . 10 16 Message Errors 3 | . 1 2 Matter Fused 10 | . 3 7 Heat Flow Errors 6 | . 2 4 Energy Discharges 2 | . . 2 Data Loss (minor) 2 | . 1 1 Data Loss (major) 2 | . 2 . Misfires 1 | . 1 . Overload Shots . | . . . Overflow Damage . | . . . Projectiles . | . . . Explosions . | . . . Melee . | . . . Knockbacks 3 | . . 3 Impact . | . . . Kinetic 3 | . . 3 Secondary . | . . . Self-Inflicted Damage 88 | . 49 39 Shots 4 | . 3 1 Rammed . | . . . Targets Rammed . | . . . Kicked . | . . . Crushed . | . . . Highest Temperature 218 | . 218 176 Average Temperature 40 | . 30 80 Received Heat Transfer 162 | . 99 63 Siege Activations . | . . . Martial Activations . | . . . Shielding Activations . | . . . Robots Disrupted . | . . . Combat Hostiles . | . . . Robots Corrupted . | . . . Combat Hostiles . | . . . Parts Fried . | . . . Impact Corruptions . | . . . Robots Melted . | . . . Combat Hostiles . | . . . Parts Melted . | . . . Heat Transferred 150 | . 150 . Parts Sabotaged . | . . . Parts Stolen . | . . . Parts Stripped . | . . . Power Chain Reactions 2 | . 2 . Alert | -11 -10 -10 ------- Run | Yrd Mat Sub Maximum Alert Level 1 | . 1 . Low Security (%) 99 | 100 99 . Level 1 . | . . . Level 2 . | . . . Level 3 . | . . . Level 4 . | . . . Level 5 . | . . . High Security . | . . . Max Security . | . . . Peak Influence 202 | 20 202 . Initial . | . . . Average 96 | 4 112 . Influence Increases 520 | 35 485 . Destroy 0b10 Robot/C 240 | . 240 . Destroy 0b10 Robot/NC 80 | 35 45 . Destroy Leader 48 | . 48 . Successful Hack 14 | . 14 . Disable Machine 15 | . 15 . Destroy Structure 63 | . 63 . Lose Combat Pursuer 60 | . 60 . Influence Decreases 520 | 35 340 145 Entered New Map 70 | . . 70 Time Decay 420 | 35 330 55 Lost Part 30 | . 10 20 Squads Dispatched 1 | . 1 . Investigation 1 | . 1 . Extermination . | . . . Reinforcement . | . . . Assault . | . . . Garrison . | . . . Intercept . | . . . Searches Triggered . | . . . Construction Impeded . | . . . Haulers Reinforced . | . . . Active Scanning Responses . | . . . Cargo Convoy Interrupts . | . . . Stealth | -11 -10 -10 --------- Run | Yrd Mat Sub Distress Signals 2 | . 2 . Communications Jammed . | . . . Distress Signals . | . . . Times Spotted 26 | . 19 7 Peak Tracking Total 3 | . 3 2 Tactical Retreats 3 | . 3 . Traps | -11 -10 -10 ------- Run | Yrd Mat Sub Traps Triggered 3 | . 2 1 Indirectly . | . . . Trap Hack Attempts . | . . . Triggered . | . . . Disarmed . | . . . Reprogrammed . | . . . Reused . | . . . Traps Extracted . | . . . Installed . | . . . Triggered . | . . . Machines | -11 -10 -10 ---------- Run | Yrd Mat Sub Machines Disabled 1 | . 1 . Max in Single Turn 1 | . 1 . Machines Repaired . | . . . Machines Dismantled . | . . . Machines Sabotaged . | . . . Overloaded Fab Kills . | . . . Hacking | -11 -10 -10 --------- Run | Yrd Mat Sub Machines Accessed 3 | . 3 . Terminals 1 | . 1 . Fabricators . | . . . Repair Stations . | . . . Recycling Units 2 | . 2 . Scanalyzers . | . . . Garrison Access . | . . . Total Hacks 6 | . 6 . Successful 3 | . 3 . Failed 3 | . 3 . Catastrophic 1 | . 1 . Database Lockouts . | . . . Manual 2 | . 2 . Terminals 2 | . 2 . Fabricators . | . . . Repair Stations . | . . . Recycling Units 4 | . 4 . Scanalyzers . | . . . Garrison Access . | . . . Terminal Hacks 1 | . 1 . Prototype ID Bank 1 | . 1 . Fabricator Hacks . | . . . Repair Station Hacks . | . . . Recycling Unit Hacks 1 | . 1 . Retrieve Components 1 | . 1 . Scanalyzer . | . . . Garrison Access Hacks . | . . . Unauthorized Hacks . | . . . Terminals . | . . . Fabricators . | . . . Repair Stations . | . . . Recycling Units . | . . . Scanalyzers . | . . . Garrison Access . | . . . Data Cores Recovered . | . . . Used . | . . . Hacking Detections 3 | . 3 . Full Trace Events 1 | . 1 . Feedback Events . | . . . Feedback Blocked . | . . . Robot Schematics Acquired . | . . . Robots Built . | . . . Authchips . | . . . Time . | . . . Total Robot Build Rating . | . . . Part Schematics Acquired . | . . . Parts Built . | . . . Authchips . | . . . Time . | . . . Total Part Build Rating . | . . . Parts Repaired . | . . . Time . | . . . Parts Recycled . | . . . Recycled Matter . | . . . Retrieved Matter . | . . . Retrieved Components 8 | . 8 . Parts Scanalyzed . | . . . Part Schematics Acquired . | . . . Parts Damaged . | . . . Bothacking | -11 -10 -10 ------------ Run | Yrd Mat Sub Used RIF Installer . | . . . Robots Hacked . | . . . Non-combat . | . . . Combat . | . . . Robot Hacks Applied . | . . . Relay Couplers Released . | . . . Fabnet Peak Effective % . | . . . Robots Rewired . | . . . Allies Hacked . | . . . Hacks Repelled . | . . . Allies | -11 -10 -10 -------- Run | Yrd Mat Sub Total Allies . | . . . Largest Group . | . . . Highest-Rated Group . | . . . Highest-Rated Ally . | . . . Total Orders . | . . . Ally Attacks . | . . . Total Damage . | . . . Kills . | . . . Allies Corrupted . | . . . Allies Melted . | . . . Intel | -11 -10 -10 ------- Run | Yrd Mat Sub Active Infowar (turns) 992 | 75 783 134 Sensors 7 | . . 7 Terrain 119 | . 111 8 Structural 118 | . . 118 Seismic 748 | 75 672 1 Robot Analysis Total . | . . . Derelict Logs Recovered . | . . . Drone Launches . | . . . Drone Recoveries . | . . . Exploration | -11 -10 -10 ------------- Run | Yrd Mat Sub Turns Passed 1945 | 133 794 1018 Spaces Moved 911 | 79 462 370 Core 12 | 12 . . Treads . | . . . Legs . | . . . Wheels 899 | 67 462 370 Hover . | . . . Flight . | . . . Fastest Speed 50 | 50 95 110 Average Speed 138 | 87 114 180 Slowest Speed 210 | 95 155 210 Overloaded Moves . | . . . Propulsion Burnouts . | . . . Robots Hopped . | . . . Potential Cave-ins . | . . . Cave-ins Triggered . | . . . Exploration Rate (%) 30 | 4 70 17 Regions Visited 2 Branch Regions 1 Pre-discovered Areas . | . . . Known Exits Taken . | . . . Unknown Exits Taken 2 | 1 1 . Scrap Searched 5 | . . 5 Spaces Dug 25 | . 25 . Terrain Destroyed 86 | . 75 11 Melee . | . . . Projectile . | . . . AOE 86 | . 75 11 Terrain Rammed . | . . . Walls Destroyed . | . . . Machines Disabled . | . . . Actions | -11 -10 -10 --------- Run | Yrd Mat Sub Total 1421 | 111 658 652 Wait 304 | 2 121 181 Move 909 | 78 461 370 Hop . | . . . Pick Up 57 | 8 16 33 Fast Attach 8 | 6 . 2 Attach 10 | 1 2 7 Detach . | . . . Swap 22 | . 12 10 Drop 13 | . 4 9 Fire 98 | 16 42 40 Melee . | . . . Ram . | . . . Kick . | . . . Crush . | . . . Escape Stasis . | . . . Rewire . | . . . Trap . | . . . Miscellaneous . | . . . Route ------- -11/Scrapyard -10/Materials (discovered 3 exits: [*Mat] / [*Min] / [*Sub]) -10/Subcaves History --------- Turn | Location | Event 4 | -11/Scrapyard | Discovered new exit (range 15) 134 | -11/Scrapyard | Entered Materials 347 | -10/Materials | Build established: Mutant 521 | -10/Materials | Discovered new exit (range 9) 657 | -10/Materials | Discovered new exit (range 13) 880 | -10/Materials | Discovered new exit (range 6) 928 | -10/Materials | Entered Subcaves 1018 | -10/Subcaves | Disturbed a concealed Subdweller 1354 | -10/Subcaves | Build established: Hauler-Mutant 1579 | -10/Subcaves | Core integrity fell below 50% 1614 | -10/Subcaves | Core integrity fell below 20% 1636 | -10/Subcaves | Lost 4 parts (1p2n1w) 1946 | -10/Subcaves | Destroyed by PM-VJ8(R) with Subdweller Machine Gun Last Messages --------------- 01617_ Subatomizers dissect the Disposable Heat Sink. 01619_ Acquired 79 matter. 01622_ Acquired Sub. Monowheel. 01627_ Acquired Disposable Heat Sink. 01628_ Subatomizers dissect the Sub. Power Source. 01630_ Acquired Sub. Power Source. 01631_ System corrupted: Matter fused (-6). 01633_ Acquired Sub. Machine Gun. 01635_ Acquired Flamer. 01638_ Dropped Flamer. 01642_ Subatomizers dissect the Flamer. 01650_